fUSD/lending_fUSD_20250818
["ID","MTS","AMOUNT","RATE_DAILY","PERIOD"]
[380073840,1755530459106,-400.0,0.0003041,120]
[380073841,1755530459132,-639.13,0.0003041,120]
[380073842,1755530459159,-695.5,0.0003041,120]
[380073843,1755530459188,-400.0,0.0003041,120]
[380073844,1755530459214,-400.0,0.0003041,120]
[380073845,1755530459241,-400.0,0.0003041,120]
[380073846,1755530459268,-400.0,0.0003041,120]
[380073847,1755530459294,-400.0,0.0003041,120]
[380073848,1755530459320,-400.0,0.0003041,120]
[380073849,1755530459347,-2405.0,0.0003041,120]
[380073850,1755530459374,-912.22,0.0003041,120]
[380073851,1755530459401,-400.0,0.0003041,120]
[380073852,1755530459428,-3597.22,0.0003041,120]
[380073853,1755530459455,-825.51,0.0003041,120]
[380073854,1755530459481,-400.0,0.0003041,120]
[380073855,1755530459507,-2047.85,0.0003041,120]
[380073856,1755530459532,-400.0,0.0003041,120]
[380073857,1755530459558,-400.0,0.0003041,120]
[380073858,1755530459584,-400.0,0.0003041,120]
[380073859,1755530459609,-429.86,0.0003041,120]
[380073860,1755530459635,-400.0,0.0003041,120]
[380073861,1755530459663,-400.0,0.0003041,120]
[380073862,1755530459689,-400.0,0.0003041,120]
[380073863,1755530459714,-479.29,0.0003041,120]
[380073864,1755530459739,-400.0,0.0003041,120]
[380073865,1755530459764,-400.0,0.0003041,120]
[380073866,1755530459788,-400.0,0.0003041,120]
[380073867,1755530459812,-400.0,0.0003041,120]
[380073868,1755530459837,-400.0,0.0003041,120]
[380073869,1755530459862,-400.0,0.0003041,120]
[380073870,1755530459888,-400.0,0.0003041,120]
[380073871,1755530459914,-400.0,0.0003041,120]
[380073872,1755530459940,-400.0,0.0003041,120]
[380073873,1755530459968,-510.71121538,0.0003041,120]
[380073874,1755530459994,-400.0,0.0003041,120]
[380073875,1755530460021,-439.59,0.0003041,120]
[380073876,1755530460051,-847.49,0.0003041,120]
[380073877,1755530460080,-1481.32,0.0003041,120]
[380073878,1755530460108,-454.06,0.0003041,120]
[380073879,1755530460136,-3336.69,0.0003041,120]
[380073880,1755530460165,-405.29,0.0003041,120]
[380073881,1755530460193,-400.0,0.0003041,120]
[380073882,1755530460223,-487.77,0.0003041,120]
[380073883,1755530460251,-400.0,0.0003041,120]
[380073884,1755530460279,-400.0,0.0003041,120]
[380073885,1755530460308,-1108.9,0.0003041,120]
[380073886,1755530460336,-400.0,0.0003041,120]
[380073887,1755530460365,-400.0,0.0003041,120]
[380073888,1755530460392,-400.0,0.0003041,120]
[380073889,1755530460420,-400.0,0.0003041,120]
[380073890,1755530460449,-400.0,0.0003041,120]
[380073891,1755530460478,-1435.52,0.0003041,120]
[380073892,1755530460506,-2630.31,0.0003041,120]
[380073893,1755530460534,-1037.86,0.0003041,120]
[380073894,1755530460846,-400.0,0.0003041,120]
[380073895,1755530460874,-400.0,0.0003041,120]
[380073896,1755530460902,-400.0,0.0003041,120]
[380073897,1755530460929,-684.98,0.0003041,120]
[380073898,1755530460955,-590.67,0.0003041,120]
[380073899,1755530460986,-812.34,0.0003041,120]
[380073900,1755530461013,-492.3,0.0003041,120]
[380073901,1755530461039,-400.0,0.0003041,120]
[380073902,1755530461065,-400.0,0.0003041,120]
[380073903,1755530461092,-3812.61,0.0003041,120]
[380073904,1755530461119,-2638.73,0.0003041,120]
[380073905,1755530461146,-924.97,0.0003041,120]
[380073906,1755530461173,-400.0,0.0003041,120]
[380073907,1755530461199,-503.51,0.0003041,120]
[380073908,1755530461224,-1092.33,0.0003041,120]
[380073909,1755530461250,-561.63,0.0003041,120]
[380073910,1755530461277,-1224.42,0.0003041,120]
[380073911,1755530461304,-602.87,0.0003041,120]
[380073912,1755530461330,-2371.54,0.0003041,120]
[380073913,1755530461357,-400.0,0.0003041,120]
[380073914,1755530461386,-1109.86,0.0003041,120]
[380073915,1755530461415,-400.0,0.0003041,120]
[380073916,1755530461445,-400.0,0.0003041,120]
[380073917,1755530461476,-750.93,0.0003041,120]
[380073918,1755530461504,-655.52,0.0003041,120]
[380073919,1755530461531,-1917.63,0.0003041,120]
[380073920,1755530461558,-1300.09,0.0003041,120]
[380073921,1755530461582,-985.32,0.0003041,120]
[380073922,1755530461608,-400.0,0.0003041,120]
[380073923,1755530461634,-911.53,0.0003041,120]
[380073924,1755530461660,-400.0,0.0003041,120]
[380073925,1755530461686,-400.0,0.0003041,120]
[380073926,1755530461712,-400.0,0.0003041,120]
[380073927,1755530461739,-400.0,0.0003041,120]
[380073928,1755530461765,-792.27,0.0003041,120]
[380073929,1755530461790,-2279.64,0.0003041,120]
[380073930,1755530461815,-3347.64,0.0003041,120]
[380073931,1755530461843,-400.0,0.0003041,120]
[380073932,1755530461893,-400.0,0.0003041,120]
[380073933,1755530461978,-454.41,0.0003041,120]
[380073934,1755530462007,-400.0,0.0003041,120]
[380073935,1755530462033,-2179.14,0.0003041,120]
[380073936,1755530462063,-400.0,0.0003041,120]
[380073937,1755530462089,-2037.25,0.0003041,120]
[380073938,1755530462116,-400.0,0.0003041,120]
[380073939,1755530462142,-400.0,0.0003041,120]
[380073940,1755530462168,-1986.76,0.0003041,120]
[380073941,1755530462196,-3423.99,0.0003041,120]
[380073942,1755530462223,-2329.81,0.0003041,120]
[380073943,1755530462250,-400.0,0.0003041,120]
[380073944,1755530462277,-758.74,0.0003041,120]
[380073945,1755530462305,-400.0,0.0003041,120]
[380073946,1755530462333,-492.11,0.0003041,120]
[380073947,1755530462362,-1461.49,0.0003041,120]
[380073948,1755530462389,-1808.08,0.0003041,120]
[380073949,1755530462416,-400.0,0.0003041,120]
[380073950,1755530462443,-1441.92,0.0003041,120]
[380073951,1755530462471,-400.0,0.0003041,120]
[380073952,1755530462497,-1827.14,0.0003041,120]
[380073953,1755530462524,-400.0,0.0003041,120]
[380073954,1755530462549,-488.58,0.0003041,120]
[380073955,1755530462575,-2153.53,0.0003041,120]
[380073956,1755530462602,-1111.18,0.0003041,120]
[380073957,1755530462629,-3893.61,0.0003041,120]
[380073958,1755530462657,-601.29,0.0003041,120]
[380073959,1755530462686,-1954.17,0.0003041,120]
[380073960,1755530462714,-400.0,0.0003041,120]
[380073961,1755530462741,-400.0,0.0003041,120]
[380073962,1755530462768,-3140.2,0.0003041,120]
[380073963,1755530462793,-984.5,0.0003041,120]
[380073964,1755530462819,-834.5,0.0003041,120]
[380073965,1755530462845,-400.0,0.0003041,120]
[380073966,1755530462872,-400.0,0.0003041,120]
[380073967,1755530462900,-1608.02,0.0003041,120]
[380073968,1755530462927,-2472.05,0.0003041,120]
[380073969,1755530462956,-400.0,0.0003041,120]
[380073970,1755530462986,-400.0,0.0003041,120]
[380073971,1755530463016,-400.0,0.0003041,120]
[380073972,1755530463044,-400.0,0.0003041,120]
[380073973,1755530463073,-4228.89,0.0003041,120]
[380073974,1755530463102,-400.0,0.0003041,120]
[380073975,1755530463132,-717.18,0.0003041,120]
[380073976,1755530463164,-4140.24,0.0003041,120]
[380073977,1755530463195,-400.0,0.0003041,120]
[380073978,1755530463225,-695.79,0.0003041,120]
[380073979,1755530463254,-1377.97,0.0003041,120]
[380073980,1755530463283,-3789.47,0.0003041,120]
[380073981,1755530463311,-2764.35,0.0003041,120]
[380073982,1755530463337,-400.0,0.0003041,120]
[380073983,1755530463363,-2310.54,0.0003041,120]
[380073984,1755530463390,-400.0,0.0003041,120]
[380073985,1755530463416,-1137.56,0.0003041,120]
[380073986,1755530463443,-400.0,0.0003041,120]
[380073987,1755530463469,-400.0,0.0003041,120]
[380073988,1755530463494,-400.0,0.0003041,120]
[380073989,1755530463520,-400.0,0.0003041,120]
[380073990,1755530463545,-400.0,0.0003041,120]
[380073991,1755530463571,-400.0,0.0003041,120]
[380073992,1755530463598,-400.0,0.0003041,120]
[380073993,1755530463625,-400.0,0.0003041,120]
[380073994,1755530463652,-777.39,0.0003041,120]
[380073995,1755530463678,-2356.14,0.0003041,120]
[380073996,1755530463706,-1177.06,0.0003041,120]
[380073997,1755530463735,-1675.91,0.0003041,120]
[380073998,1755530463762,-1410.06,0.0003041,120]
[380073999,1755530463789,-1209.46,0.0003041,120]
[380074000,1755530463817,-1039.62,0.0003041,120]
[380074001,1755530463844,-4229.55,0.0003041,120]
[380074002,1755530463871,-429.69,0.0003041,120]
[380074003,1755530463899,-400.0,0.0003041,120]
[380074004,1755530463926,-400.0,0.0003041,120]
[380074005,1755530463954,-2075.27,0.0003041,120]
[380074006,1755530463987,-2647.68,0.0003041,120]
[380074007,1755530464015,-3907.99,0.0003041,120]
[380074008,1755530464043,-974.83,0.0003041,120]
[380074009,1755530464338,-1129.58,0.0003041,120]
[380074010,1755530464367,-1236.68,0.0003041,120]
[380074011,1755530464393,-400.0,0.0003041,120]
[380074012,1755530464419,-1903.46,0.0003041,120]
[380074013,1755530464447,-400.0,0.0003041,120]
[380074014,1755530464474,-969.21,0.0003041,120]
[380074015,1755530464501,-400.0,0.0003041,120]
[380074016,1755530464530,-1668.91,0.0003041,120]
[380074017,1755530464556,-3355.89,0.0003041,120]
[380074018,1755530464582,-801.66,0.0003041,120]
[380074019,1755530464609,-400.0,0.0003041,120]
[380074020,1755530464638,-938.65,0.0003041,120]
[380074021,1755530464665,-400.0,0.0003041,120]
[380074022,1755530464695,-3168.51,0.0003041,120]
[380074023,1755530464724,-400.0,0.0003041,120]
[380074024,1755530464751,-400.0,0.0003041,120]
[380074025,1755530464779,-400.0,0.0003041,120]
[380074026,1755530464806,-400.0,0.0003041,120]
[380074027,1755530464832,-400.0,0.0003041,120]
[380074028,1755530464859,-3560.01,0.0003041,120]
[380074029,1755530464885,-400.0,0.0003041,120]
[380074030,1755530464911,-401.62678941,0.0003041,120]
[380074031,1755530464937,-860.96,0.0003041,120]
[380074032,1755530464966,-3407.09,0.0003041,120]
[380074033,1755530464993,-4454.95,0.0003041,120]
[380074034,1755530465020,-400.0,0.0003041,120]
[380074035,1755530465046,-534.22,0.0003041,120]
[380074036,1755530465072,-1515.5,0.0003041,120]
[380074037,1755530465098,-4615.2,0.0003041,120]
[380074038,1755530465125,-2255.89,0.0003041,120]
[380074039,1755530465152,-400.0,0.0003041,120]
[380074040,1755530465179,-400.0,0.0003041,120]
[380074041,1755530465208,-400.0,0.0003041,120]
[380074042,1755530465235,-400.0,0.0003041,120]
[380074043,1755530465262,-1384.69,0.0003041,120]
[380074044,1755530465288,-400.0,0.0003041,120]
[380074045,1755530465314,-445.43,0.0003041,120]
[380074046,1755530465340,-498.58,0.0003041,120]
[380074047,1755530465366,-2047.79,0.0003041,120]
[380074048,1755530465392,-3788.52,0.0003041,120]
[380074049,1755530465418,-673.91,0.0003041,120]
[380074050,1755530465444,-400.0,0.0003041,120]
[380074051,1755530465471,-1270.45,0.0003041,120]
[380074052,1755530465498,-541.97666213,0.0003041,120]
[380074053,1755530465526,-400.0,0.0003041,120]
[380074054,1755530465554,-2378.42,0.0003041,120]
[380074055,1755530465582,-1966.39,0.0003041,120]
[380074056,1755530465610,-400.0,0.0003041,120]
[380074057,1755530465639,-400.0,0.0003041,120]
[380074058,1755530465668,-400.0,0.0003041,120]
[380074059,1755530465697,-400.0,0.0003041,120]
[380074060,1755530465724,-1639.01,0.0003041,120]
[380074061,1755530465750,-400.0,0.0003041,120]
[380074062,1755530465776,-988.45,0.0003041,120]
[380074063,1755530465802,-588.1,0.0003041,120]
[380074064,1755530465829,-400.0,0.0003041,120]
[380074065,1755530465855,-1387.38,0.0003041,120]
[380074066,1755530465881,-2779.83,0.0003041,120]
[380074067,1755530465907,-1394.76,0.0003041,120]
[380074068,1755530465934,-1661.55,0.0003041,120]
[380074069,1755530465963,-612.42,0.0003041,120]
[380074070,1755530465989,-724.33,0.0003041,120]
[380074071,1755530466018,-2116.67,0.0003041,120]
[380074072,1755530466046,-400.0,0.0003041,120]
[380074073,1755530466077,-555.92,0.0003041,120]
[380074074,1755530466105,-400.0,0.0003041,120]
[380074075,1755530466135,-1692.5,0.0003041,120]
[380074076,1755530466164,-400.0,0.0003041,120]
[380074077,1755530466193,-741.82,0.0003041,120]
[380074078,1755530466221,-400.0,0.0003041,120]
[380074079,1755530466248,-400.0,0.0003041,120]
[380074080,1755530466275,-3812.89,0.0003041,120]
[380074081,1755530466301,-400.0,0.0003041,120]
[380074082,1755530466328,-602.34,0.0003041,120]
[380074083,1755530466355,-2672.12,0.0003041,120]
[380074084,1755530466384,-677.65,0.0003041,120]
[380074085,1755530466411,-831.16,0.0003041,120]
[380074086,1755530466439,-400.0,0.0003041,120]
[380074087,1755530466466,-2328.47,0.0003041,120]
[380074088,1755530466493,-170.65949447,0.0003041,120]
[380074089,1755530466520,-3796.42,0.0003041,120]
[380074090,1755530466546,-3769.16,0.0003041,120]
[380074091,1755530466573,-2722.53,0.0003041,120]
[380074092,1755530466601,-400.0,0.0003041,120]
[380074093,1755530466630,-400.0,0.0003041,120]
[380074094,1755530466658,-720.14,0.0003041,120]
[380074095,1755530466686,-2641.71,0.0003041,120]
[380074096,1755530466714,-2147.76,0.0003041,120]
[380074097,1755530466741,-400.0,0.0003041,120]
[380074098,1755530466767,-400.0,0.0003041,120]
[380074099,1755530466794,-400.0,0.0003041,120]
[380074100,1755530466820,-400.0,0.0003041,120]
[380074101,1755530466846,-3079.63,0.0003041,120]
[380074102,1755530466872,-993.54,0.0003041,120]
[380074103,1755530466898,-2090.22,0.0003041,120]
[380074104,1755530466924,-400.0,0.0003041,120]
[380074105,1755530466951,-2440.43,0.0003041,120]
[380074106,1755530466980,-4472.17,0.0003041,120]
[380074107,1755530467008,-1335.57,0.0003041,120]
[380074108,1755530467038,-706.89,0.0003041,120]
[380074109,1755530467067,-1112.57,0.0003041,120]
[380074110,1755530467096,-400.0,0.0003041,120]
[380074111,1755530467126,-400.0,0.0003041,120]
[380074112,1755530467155,-1882.39,0.0003041,120]
[380074113,1755530467183,-1469.63,0.0003041,120]
[380074114,1755530467210,-400.0,0.0003041,120]
[380074115,1755530467238,-1655.96,0.0003041,120]
[380074116,1755530467265,-400.0,0.0003041,120]
[380074117,1755530467292,-963.48,0.0003041,120]
[380074118,1755530467320,-913.88,0.0003041,120]
[380074119,1755530467347,-3943.3,0.0003041,120]
[380074120,1755530467374,-1964.77,0.0003041,120]
[380074121,1755530467406,-1709.67,0.0003041,120]
[380074122,1755530467485,-1323.91,0.0003041,60]
[380074123,1755530467531,-4470.25,0.0003041,120]
[380074124,1755530467821,-400.0,0.0003041,120]
[380074125,1755530467847,-400.0,0.0003041,120]
[380074126,1755530467874,-400.0,0.0003041,120]
[380074127,1755530467901,-3046.74,0.0003041,120]
[380074128,1755530467927,-400.0,0.0003041,120]
[380074129,1755530467954,-411.75,0.0003041,120]
[380074130,1755530467982,-790.32,0.0003041,120]
[380074131,1755530468009,-646.45,0.0003041,120]
[380074132,1755530468037,-400.0,0.0003041,120]
[380074133,1755530468066,-400.0,0.0003041,120]
[380074134,1755530468094,-3868.28,0.0003041,120]
[380074135,1755530468121,-4040.2,0.0003041,120]
[380074136,1755530468151,-652.76,0.0003041,120]
[380074137,1755530468180,-592.41,0.0003041,120]
[380074138,1755530468209,-400.0,0.0003041,120]
[380074139,1755530468238,-1836.65,0.0003041,120]
[380074140,1755530468266,-481.44,0.0003041,120]
[380074141,1755530468294,-872.14,0.0003041,120]
[380074142,1755530468323,-2505.93,0.0003041,120]
[380074143,1755530468350,-400.0,0.0003041,120]
[380074144,1755530468378,-400.0,0.0003041,120]
[380074145,1755530468406,-2516.89,0.0003041,120]
[380074146,1755530468434,-2706.0,0.0003041,120]
[380074147,1755530468462,-400.0,0.0003041,120]
[380074148,1755530468490,-929.59,0.0003041,120]
[380074149,1755530468519,-4708.25,0.0003041,120]
[380074150,1755530468549,-3660.3,0.0003041,120]
[380074151,1755530468579,-400.0,0.0003041,120]
[380074152,1755530468607,-757.3,0.0003041,120]
[380074153,1755530468635,-400.0,0.0003041,120]
[380074154,1755530468662,-400.0,0.0003041,120]
[380074155,1755530468690,-453.19,0.0003041,120]
[380074156,1755530468717,-1465.09,0.0003041,120]
[380074157,1755530468745,-685.35,0.0003041,120]
[380074158,1755530468772,-400.0,0.0003041,120]
[380074159,1755530468800,-400.0,0.0003041,120]
[380074160,1755530468827,-3129.83,0.0003041,120]
[380074161,1755530468856,-400.0,0.0003041,120]
[380074162,1755530468884,-1259.75,0.0003041,120]
[380074163,1755530468912,-400.0,0.0003041,120]
[380074164,1755530468939,-1556.66,0.0003041,120]
[380074165,1755530468972,-2693.53,0.0003041,120]
[380074166,1755530469002,-1974.36,0.0003041,120]
[380074167,1755530469031,-401.03267545,0.0003041,120]
[380074169,1755530469062,-2132.65,0.0003041,120]
[380074170,1755530469091,-2359.62,0.0003041,120]
[380074171,1755530469120,-400.0,0.0003041,120]
[380074172,1755530469149,-400.0,0.0003041,120]
[380074173,1755530469177,-4181.48,0.0003041,120]
[380074174,1755530469206,-3072.25,0.0003041,120]
[380074175,1755530469235,-400.0,0.0003041,120]
[380074176,1755530469263,-400.0,0.0003041,120]
[380074177,1755530469291,-845.94,0.0003041,60]
[380074178,1755530469318,-523.2,0.0003041,120]
[380074179,1755530469347,-2608.13,0.0003041,120]
[380074180,1755530469374,-3217.3,0.0003041,120]
[380074181,1755530469401,-170.23807668,0.0003041,120]
[380074182,1755530469427,-2232.11,0.0003041,120]
[380074183,1755530469454,-611.56,0.0003041,120]
[380074184,1755530469481,-400.0,0.0003041,120]
[380074185,1755530469507,-1612.34,0.0003041,120]
[380074186,1755530469534,-400.0,0.0003041,120]
[380074187,1755530469562,-400.0,0.0003041,120]
[380074188,1755530469589,-850.73,0.0003041,120]
[380074189,1755530469615,-554.37,0.0003041,120]
[380074190,1755530469642,-717.0,0.0003041,120]
[380074191,1755530469670,-1071.83,0.0003041,120]
[380074192,1755530469697,-400.0,0.0003041,120]
[380074193,1755530469725,-461.78,0.0003041,120]
[380074194,1755530469752,-400.0,0.0003041,120]
[380074195,1755530469779,-3697.8,0.0003041,120]
[380074196,1755530469804,-924.58,0.0003041,120]
[380074197,1755530469831,-1180.46,0.0003041,120]
[380074198,1755530469858,-400.0,0.0003041,120]
[380074199,1755530469885,-400.0,0.0003041,120]
[380074200,1755530469912,-1920.87,0.0003041,120]
[380074201,1755530469938,-400.0,0.0003041,120]
[380074202,1755530469968,-4469.0,0.0003041,120]
[380074203,1755530469996,-1338.32,0.0003041,120]
[380074204,1755530470026,-459.19,0.0003041,120]
[380074205,1755530470054,-1009.18,0.0003041,120]
[380074206,1755530470082,-2038.41,0.0003041,120]
[380074207,1755530470110,-4381.09,0.0003041,120]
[380074208,1755530470138,-1305.3,0.0003041,120]
[380074209,1755530470166,-1395.81,0.0003041,120]
[380074210,1755530470194,-1830.48,0.0003041,120]
[380074211,1755530470221,-400.0,0.0003041,120]
[380074212,1755530470250,-2560.21,0.0003041,120]
[380074213,1755530470276,-1963.49,0.0003041,120]
[380074214,1755530470305,-944.62,0.0003041,120]
[380074215,1755530470337,-2674.28,0.0003041,120]
[380074216,1755530470368,-400.0,0.0003041,120]
[380074217,1755530470398,-400.0,0.0003041,120]
[380074218,1755530470427,-400.0,0.0003041,120]
[380074219,1755530470456,-400.0,0.0003041,120]
[380074220,1755530470484,-2474.02,0.0003041,120]
[380074221,1755530470511,-400.0,0.0003041,120]
[380074222,1755530470537,-2423.71,0.0003041,120]
[380074223,1755530470565,-400.0,0.0003041,120]
[380074224,1755530470591,-400.0,0.0003041,120]
[380074225,1755530470618,-517.09,0.0003041,120]
[380074226,1755530470643,-400.0,0.0003041,120]
[380074227,1755530470669,-3199.21,0.0003041,120]
[380074228,1755530470695,-2494.98,0.0003041,120]
[380074229,1755530470722,-1847.44,0.0003041,120]
[380074230,1755530470748,-400.0,0.0003041,120]
[380074231,1755530470774,-400.0,0.0003041,120]
[380074232,1755530470801,-4449.91,0.0003041,120]
[380074233,1755530470827,-400.0,0.0003041,120]
[380074234,1755530470854,-3333.41,0.0003041,120]
[380074235,1755530470881,-2395.34,0.0003041,120]
[380074236,1755530470907,-400.0,0.0003041,120]
[380074237,1755530470933,-400.0,0.0003041,120]
[380074238,1755530470960,-572.52,0.0003041,120]
[380074239,1755530471217,-573.15,0.0003041,120]
[380074240,1755530471280,-1492.43,0.0003041,120]
[380074241,1755530471306,-663.06,0.0003041,120]
[380074242,1755530471334,-576.16,0.0003041,120]
[380074243,1755530471360,-400.0,0.0003041,120]
[380074244,1755530471386,-400.0,0.0003041,120]
[380074245,1755530471413,-668.42,0.0003041,120]
[380074246,1755530471439,-1150.56,0.0003041,120]
[380074247,1755530471468,-2478.41,0.0003041,120]
[380074248,1755530471494,-400.0,0.0003041,120]
[380074249,1755530471521,-898.82,0.0003041,120]
[380074250,1755530471547,-1033.95,0.0003041,120]
[380074251,1755530471574,-400.0,0.0003041,120]
[380074252,1755530471601,-876.39,0.0003041,120]
[380074253,1755530471627,-837.65,0.0003041,120]
[380074254,1755530471654,-651.56,0.0003041,120]
[380074255,1755530471681,-5540.61,0.0003041,120]
[380074256,1755530471709,-2222.7,0.0003041,120]
[380074257,1755530471736,-4061.25,0.0003041,120]
[380074258,1755530471763,-1182.75,0.0003041,120]
[380074259,1755530471790,-4384.85,0.0003041,120]
[380074260,1755530471817,-788.1,0.0003041,120]
[380074261,1755530471844,-400.0,0.0003041,120]
[380074262,1755530471872,-775.71,0.0003041,120]
[380074263,1755530471899,-1868.24,0.0003041,120]
[380074264,1755530471926,-400.0,0.0003041,120]
[380074265,1755530471953,-400.0,0.0003041,120]
[380074266,1755530471983,-802.0,0.0003041,120]
[380074267,1755530472011,-400.0,0.0003041,120]
[380074268,1755530472038,-2529.03,0.0003041,120]
[380074269,1755530472067,-2326.45,0.0003041,120]
[380074270,1755530472094,-747.84,0.0003041,120]
[380074271,1755530472123,-2735.28,0.0003041,120]
[380074272,1755530472151,-400.0,0.0003041,120]
[380074273,1755530472179,-981.3,0.0003041,120]
[380074274,1755530472208,-1658.98,0.0003041,120]
[380074275,1755530472236,-562.96,0.0003041,120]
[380074276,1755530472264,-5014.59,0.0003041,120]
[380074277,1755530472293,-400.0,0.0003041,120]
[380074278,1755530472336,-8918.38,0.0003041,120]
[380074279,1755530472366,-400.0,0.0003041,120]
[380074280,1755530472396,-400.0,0.0003041,120]
[380074281,1755530472425,-2761.13,0.0003041,120]
[380074282,1755530472453,-3372.47,0.0003041,120]
[380074283,1755530472481,-400.0,0.0003041,120]
[380074284,1755530472509,-400.0,0.0003041,120]
[380074285,1755530472538,-2627.75,0.0003041,120]
[380074286,1755530472568,-400.0,0.0003041,120]
[380074287,1755530472597,-400.0,0.0003041,120]
[380074288,1755530472625,-400.0,0.0003041,120]
[380074289,1755530472652,-1101.34,0.0003041,120]
[380074290,1755530472679,-400.0,0.0003041,120]
[380074291,1755530472708,-515.62,0.0003041,120]
[380074292,1755530472736,-400.0,0.0003041,120]
[380074293,1755530472764,-2397.9,0.0003041,120]
[380074294,1755530472792,-4474.17,0.0003041,120]
[380074295,1755530472819,-411.93,0.0003041,120]
[380074296,1755530472847,-564.68,0.0003041,120]
[380074297,1755530472882,-2216.51,0.0003041,120]
[380074298,1755530472911,-400.0,0.0003041,120]
[380074299,1755530472940,-400.0,0.0003041,120]
[380074300,1755530472980,-1753.31,0.0003041,120]
[380074301,1755530473083,-2506.5,0.0003041,120]
[380074302,1755530473127,-963.85,0.0003041,120]
[380074303,1755530473158,-1000.73,0.0003041,120]
[380074304,1755530473191,-3788.56,0.0003041,120]
[380074305,1755530473223,-523.52,0.0003041,120]
[380074306,1755530473253,-400.0,0.0003041,120]
[380074307,1755530473282,-1298.29,0.0003041,120]
[380074308,1755530473312,-400.0,0.0003041,120]
[380074309,1755530473343,-1817.48,0.0003041,120]
[380074310,1755530473372,-8220.19,0.0003041,120]
[380074311,1755530473403,-9047.29,0.0003041,120]
[380074312,1755530473434,-1089.48,0.0003041,120]
[380074313,1755530473466,-400.0,0.0003041,120]
[380074314,1755530473495,-744.3,0.0003041,120]
[380074315,1755530473524,-4074.48,0.0003041,120]
[380074316,1755530473555,-427.22,0.0003041,120]
[380074317,1755530473595,-652.64,0.0003041,120]
[380074318,1755530473625,-884.17,0.0003041,120]
[380074319,1755530473655,-1588.77,0.0003041,120]
[380074320,1755530473683,-2188.82,0.0003041,120]
[380074321,1755530473712,-400.0,0.0003041,120]
[380074322,1755530473740,-1907.41,0.0003041,120]
[380074323,1755530473768,-2504.87,0.0003041,120]
[380074324,1755530473797,-920.74,0.0003041,120]
[380074325,1755530473825,-2256.61,0.0003041,120]
[380074326,1755530473855,-400.0,0.0003041,120]
[380074327,1755530473884,-400.0,0.0003041,120]
[380074328,1755530473913,-2690.79,0.0003041,120]
[380074329,1755530473944,-1960.1,0.0003041,120]
[380074330,1755530473977,-1938.58,0.0003041,120]
[380074331,1755530474011,-24164.91,0.0003041,120]
[380074332,1755530474045,-463.47,0.0003041,120]
[380074333,1755530474078,-559.57,0.0003041,120]
[380074334,1755530474110,-400.0,0.0003041,120]
[380074335,1755530474144,-2353.33,0.0003041,120]
[380074336,1755530474176,-1639.91,0.0003041,120]
[380074337,1755530474208,-400.0,0.0003041,120]
[380074338,1755530474244,-400.0,0.0003041,120]
[380074339,1755530474276,-400.0,0.0003041,120]
[380074340,1755530474306,-6090.69,0.0003041,120]